bitfinex/quotes_BTCUSD_20250602
["timestamp","ask_amount","ask_price","bid_price","bid_amount"]
[1748873539813,0.36673198,104020.0,104010.0,2.06934818]
[1748873540026,0.36673198,104020.0,104010.0,7.32307981]
[1748873541324,0.10515812,104060.0,104050.0,1.11520887]
[1748873541325,0.04315812,104060.0,104050.0,1.11520887]
[1748873541535,0.04330371,104060.0,104050.0,2.06818317]
[1748873541752,0.04330371,104060.0,104050.0,1.21106317]
[1748873541972,0.04330371,104060.0,104050.0,1.18346075]
[1748873542223,0.04330371,104060.0,104050.0,1.51390075]
[1748873542460,0.04330371,104060.0,104050.0,2.06806317]
[1748873542893,0.42771371,104060.0,104050.0,2.06806317]
[1748873543125,0.42771371,104060.0,104050.0,2.09493419]
[1748873543370,0.42771371,104060.0,104050.0,7.21263102]
[1748873543631,0.42771371,104060.0,104050.0,7.2967336]
[1748873544311,0.4126982,104060.0,104050.0,7.3567336]
[1748873545212,0.3716982,104060.0,104050.0,6.80057118]
[1748873545434,0.3716982,104060.0,104050.0,7.37087885]
[1748873545619,0.3716982,104060.0,104050.0,6.2968886]
[1748873545849,0.3716982,104060.0,104050.0,3.58072083]
[1748873546058,0.3716982,104060.0,104050.0,3.58272083]
[1748873546473,0.3716982,104060.0,104050.0,3.58472083]
[1748873546698,0.3716982,104060.0,104050.0,2.18766083]
[1748873546918,0.3716982,104060.0,104050.0,2.50343998]
[1748873547331,0.3716982,104060.0,104050.0,2.51798083]
[1748873547556,0.3716982,104060.0,104050.0,1.2019216]
[1748873547767,0.3716982,104060.0,104050.0,1.78948083]
[1748873548462,0.3716982,104060.0,104050.0,2.12948083]
[1748873549612,0.3716982,104060.0,104050.0,1.79916083]
[1748873549816,0.3716982,104060.0,104050.0,2.12944083]
[1748873550411,0.3716982,104060.0,104050.0,1.68780083]
[1748873550627,0.3716982,104060.0,104050.0,2.12940083]
[1748873552408,0.3716982,104060.0,104050.0,2.15823883]
[1748873552607,0.3716982,104060.0,104050.0,2.18863883]
[1748873553790,0.3716982,104060.0,104050.0,2.15823883]
[1748873553992,0.3716982,104060.0,104050.0,1.5609996]
[1748873554195,0.3306982,104060.0,104050.0,2.15823883]
[1748873554796,0.3306982,104060.0,104050.0,1.82795883]
[1748873554993,0.3306982,104060.0,104050.0,2.15815883]
[1748873555196,0.3306982,104060.0,104050.0,2.11465998]
[1748873555398,0.3306982,104060.0,104050.0,0.66090075]
[1748873555644,0.3945982,104060.0,104050.0,1.17726075]
[1748873555839,0.3945982,104060.0,104050.0,0.84710075]
[1748873556040,0.3945982,104060.0,104050.0,1.17726075]
[1748873556248,0.3945982,104060.0,104050.0,1.51526075]
[1748873556460,0.3945982,104060.0,104050.0,1.51326075]
[1748873556664,0.3945982,104060.0,104050.0,0.84410075]
[1748873556917,0.3945982,104060.0,104050.0,1.17526075]
[1748873557688,0.3945982,104060.0,104050.0,0.73386075]
[1748873557894,0.3945982,104060.0,104050.0,1.17526075]
[1748873559424,0.3639982,104060.0,104050.0,1.17526075]
[1748873559829,0.3306982,104060.0,104050.0,1.77249998]
[1748873560035,0.3166082,104060.0,104050.0,4.44034083]
[1748873560239,0.3166082,104060.0,104050.0,4.47184083]
[1748873560599,0.3166082,104060.0,104050.0,4.52184083]
[1748873561176,0.3166082,104060.0,104050.0,4.53184083]
[1748873561364,0.2756082,104060.0,104050.0,4.55877239]
[1748873561579,0.05839004,104140.0,104130.0,0.22087662]
[1748873561580,0.02,104140.0,104130.0,0.22087662]
[1748873561770,0.02,104140.0,104130.0,1.07723662]
[1748873561967,0.02048549,104140.0,104130.0,1.07723662]
[1748873562169,0.08408549,104140.0,104130.0,1.07723662]
[1748873562589,0.80820549,104140.0,104130.0,1.07723662]
[1748873562828,0.83701147,104140.0,104130.0,1.07723662]
[1748873563037,0.8284092,104140.0,104130.0,1.07723662]
[1748873563208,0.83801138,104140.0,104130.0,1.07723662]
[1748873563472,0.84301138,104140.0,104130.0,1.07715662]
[1748873563672,0.8334092,104140.0,104130.0,1.07715662]
[1748873563882,1.12026475,104140.0,104130.0,0.62627407]
[1748873564115,0.85261365,104140.0,104130.0,0.75667981]
[1748873564319,0.82380721,104140.0,104130.0,0.75667981]
[1748873564528,0.8430111,104140.0,104130.0,0.75667981]
[1748873564916,0.82380711,104140.0,104130.0,0.75667981]
[1748873565158,0.84301082,104140.0,104130.0,0.75667981]
[1748873566181,1.05426443,104140.0,104130.0,0.74707708]
[1748873566374,0.85261309,104140.0,104130.0,0.75667981]
[1748873567317,0.84301082,104140.0,104130.0,1.08667981]
[1748873567640,0.852613,104140.0,104130.0,1.08667981]
[1748873567823,0.84301082,104140.0,104130.0,1.08667981]
[1748873568023,0.852613,104140.0,104130.0,1.08667981]
[1748873568321,1.04466299,104140.0,104130.0,1.06747407]
[1748873568524,0.85261365,104140.0,104130.0,1.08667981]
[1748873568870,0.8334092,104140.0,104130.0,1.08667981]
[1748873569066,0.84301128,104140.0,104130.0,1.08667981]
[1748873569467,0.85261355,104140.0,104130.0,1.07707708]
[1748873569687,0.8334092,104140.0,104130.0,1.07707708]
[1748873569904,0.84301147,104140.0,104130.0,1.07707708]
[1748873570253,1.04466308,104140.0,104130.0,0.74707708]
[1748873570477,1.04466308,104140.0,104130.0,1.07703708]
[1748873571058,1.03506136,104140.0,104130.0,1.07703717]
[1748873571311,1.03506136,104140.0,104130.0,1.08664018]
[1748873571518,1.03506136,104140.0,104130.0,1.09624309]
[1748873571728,0.81420549,104140.0,104130.0,1.09624254]
[1748873571944,0.47420549,104140.0,104130.0,1.19209684]
[1748873573408,0.7046628,104140.0,104130.0,0.75667981]
[1748873573613,1.02545928,104140.0,104130.0,0.5262]
[1748873573835,1.0158571,104140.0,104130.0,0.5262]
[1748873574035,1.0158571,104140.0,104130.0,0.415]
[1748873574241,1.0158571,104140.0,104130.0,0.1112]
[1748873574460,1.12290917,104140.0,104130.0,0.1112]
[1748873574692,1.03039795,104140.0,104130.0,0.1112]
[1748873575219,1.03039795,104140.0,104130.0,0.31287098]
[1748873575424,1.02545928,104140.0,104130.0,0.3320769]
[1748873575619,0.84301165,104140.0,104130.0,0.34167963]
[1748873575868,1.05426488,104140.0,104130.0,0.34167963]
[1748873576065,0.43340874,104130.0,104120.0,0.20168927]
[1748873576241,0.4334081,104130.0,104120.0,0.66193703]
[1748873576444,0.82713111,104130.0,104120.0,0.66193703]
[1748873576895,0.83673421,104130.0,104120.0,0.66193703]
[1748873577037,1.01919981,104130.0,104120.0,0.30328543]
[1748873577238,0.99999389,104130.0,104120.0,0.1112]
[1748873577599,0.54169026,104120.0,104110.0,0.20170937]
[1748873577803,0.62451914,104110.0,104100.0,0.52604]
[1748873578012,0.61491466,104110.0,104100.0,1.057609]
[1748873578222,0.61491466,104110.0,104100.0,0.1112]
[1748873578427,0.55626976,104100.0,104080.0,0.19209229]
[1748873578580,0.64878098,104100.0,104090.0,0.00960707]
[1748873578736,0.0192133,104090.0,104080.0,0.56036295]
[1748873578938,0.0828133,104090.0,104080.0,0.23052295]
[1748873579142,0.4669333,104090.0,104080.0,0.56032295]
[1748873579803,0.44820519,104090.0,104080.0,0.23052295]
[1748873580023,0.45020519,104090.0,104080.0,0.67152295]
[1748873580243,0.45981152,104090.0,104080.0,0.67152295]
[1748873580363,0.45120519,104090.0,104080.0,0.67152295]
[1748873582322,0.45120519,104090.0,104080.0,0.76737725]
[1748873582746,0.46081143,104090.0,104080.0,0.67152295]
[1748873582955,0.02882258,104080.0,104070.0,0.60695022]
[1748873583168,0.09182249,104080.0,104070.0,0.73736703]
[1748873583344,0.09182249,104080.0,104070.0,1.07677585]
[1748873583345,0.46633478,104080.0,104070.0,1.07677585]
[1748873583482,0.46633469,104080.0,104070.0,1.07677585]
[1748873583687,0.47594231,104080.0,104070.0,1.07677585]
[1748873584071,0.48555011,104080.0,104070.0,1.07677585]
[1748873584278,0.47594231,104080.0,104070.0,1.07677585]
[1748873584486,0.68731862,104080.0,104070.0,1.07677603]
[1748873584693,0.47594277,104080.0,104070.0,1.0863843]
[1748873584886,0.46633506,104080.0,104070.0,1.0863843]
[1748873585048,0.46633506,104080.0,104070.0,0.7575843]
[1748873585250,0.47594286,104080.0,104070.0,1.0873843]
[1748873585501,0.7442108,104080.0,104070.0,0.72875904]
[1748873585704,1.07460336,104080.0,104070.0,0.002]
[1748873585835,1.08914421,104080.0,104070.0,0.002]
[1748873586050,1.08914421,104080.0,104050.0,4e-05]
[1748873586051,0.01454085,104070.0,104050.0,4e-05]
[1748873586255,0.61591582,104060.0,104050.0,4e-05]
[1748873586654,1.12043097,104060.0,104050.0,4e-05]
[1748873586858,1.45023097,104060.0,104050.0,4e-05]
[1748873588337,1.45023097,104060.0,104050.0,0.00204]
[1748873588723,1.45423097,104060.0,104050.0,4e-05]
[1748873588875,1.55074219,104060.0,104050.0,4e-05]
[1748873589708,0.45662,104060.0,104050.0,1.24962453]
[1748873590197,0.39212,104060.0,104050.0,1.80293456]
[1748873590756,0.39212,104060.0,104050.0,0.39390453]
[1748873590971,0.39212,104060.0,104050.0,0.80894453]
[1748873591158,0.38812,104060.0,104050.0,1.24978453]
[1748873591498,0.38512,104060.0,104050.0,1.24978453]
[1748873591842,0.38512,104060.0,104050.0,0.39390453]
[1748873592054,0.41752,104060.0,104050.0,1.17282075]
[1748873592274,0.38412,104060.0,104050.0,1.17282075]
[1748873594238,0.38412,104060.0,104050.0,0.73198075]
[1748873594582,0.38412,104060.0,104050.0,1.17278075]
[1748873595389,0.38412,104060.0,104050.0,0.73198075]
[1748873595586,0.38412,104060.0,104050.0,1.17278075]
[1748873595748,0.38412,104060.0,104050.0,0.73198075]
[1748873595972,0.38412,104060.0,104050.0,1.17278075]
[1748873599987,0.38412,104060.0,104050.0,0.73198075]
[1748873600188,0.38412,104060.0,104050.0,1.17274075]
[1748873601277,0.38412,104060.0,104050.0,1.77043832]
[1748873601942,0.38412,104060.0,104050.0,1.80179832]
[1748873602170,0.38412,104060.0,104050.0,1.32967832]
[1748873602419,0.38412,104060.0,104050.0,1.17270075]
[1748873602618,0.38412,104060.0,104050.0,0.73198075]
[1748873603024,0.432141,104060.0,104050.0,0.84302075]
[1748873603232,0.38412,104060.0,104050.0,1.17270075]
[1748873605212,0.38412,104060.0,104050.0,0.73198075]
[1748873605418,0.38412,104060.0,104050.0,0.84302075]
[1748873605697,0.38412,104060.0,104050.0,1.17266075]
[1748873605904,0.38412,104060.0,104050.0,1.77035832]
[1748873606312,0.38412,104060.0,104050.0,1.17266075]
[1748873606455,0.38412,104060.0,104050.0,1.17262075]
[1748873607875,0.18961992,104060.0,104050.0,1.17262075]
[1748873609143,0.18961992,104060.0,104050.0,1.80351832]
[1748873609956,0.18961992,104060.0,104050.0,1.20582075]
[1748873610368,0.18961992,104060.0,104050.0,2.2516821]
[1748873611217,0.18961992,104060.0,104050.0,1.65398453]
[1748873611425,0.18961992,104060.0,104050.0,2.2516821]
[1748873612966,0.18961992,104060.0,104050.0,2.26622295]
[1748873613375,0.18961992,104060.0,104050.0,7.36324995]
[1748873614433,0.18961992,104060.0,104050.0,7.28628617]
[1748873614643,0.18961992,104060.0,104050.0,5.64345917]
[1748873615039,0.18961992,104060.0,104050.0,5.64745917]
[1748873615240,0.18961992,104060.0,104050.0,5.60329147]
[1748873615447,0.18961992,104060.0,104050.0,3.31515147]
[1748873616587,0.00048519,104090.0,104080.0,0.56098273]
[1748873616712,0.00048519,104090.0,104080.0,1.6505269]
[1748873617341,0.00048519,104090.0,104080.0,1.67922494]
[1748873617548,0.38478519,104090.0,104080.0,1.23906494]
[1748873617765,0.38478519,104090.0,104080.0,1.67922494]
[1748873618184,0.38478519,104090.0,104080.0,1.23906494]
[1748873618395,0.38478519,104090.0,104080.0,1.68222494]
[1748873618812,0.38478519,104090.0,104080.0,1.68522494]
[1748873619015,0.34378519,104090.0,104080.0,1.68522494]
[1748873619455,0.34378519,104090.0,104080.0,1.68518494]
[1748873619663,0.34378519,104090.0,104080.0,1.69503359]
[1748873621375,0.34378519,104090.0,104080.0,1.14150372]
[1748873621528,0.34378519,104090.0,104080.0,0.80146372]
[1748873622104,0.34378519,104090.0,104080.0,0.36138372]
[1748873622308,0.34378519,104090.0,104080.0,0.80142372]
[1748873622791,0.34378519,104090.0,104080.0,0.36138372]
[1748873622994,0.34378519,104090.0,104080.0,0.80142372]
[1748873623363,0.34378519,104090.0,104080.0,1.14142372]
[1748873623567,0.34378519,104090.0,104080.0,1.72585359]
[1748873624123,0.34378519,104090.0,104080.0,1.69495359]
[1748873625303,0.34378519,104090.0,104080.0,1.77319444]
[1748873625708,0.34378519,104090.0,104080.0,7.42375131]
[1748873626028,0.30278519,104090.0,104080.0,7.42375131]
[1748873627265,0.30278519,104090.0,104080.0,0.74682457]
[1748873627470,0.30278519,104090.0,104080.0,1.70937444]
[1748873627679,0.30278519,104090.0,104080.0,1.69483359]
[1748873630085,0.30278519,104090.0,104080.0,1.70937444]
[1748873630343,0.30278519,104090.0,104080.0,1.74077444]
[1748873631032,0.30278519,104090.0,104080.0,1.70937444]
[1748873632021,0.30278519,104090.0,104080.0,1.38021444]
[1748873632263,0.30278519,104090.0,104080.0,1.22698372]
[1748873632491,0.30278519,104090.0,104080.0,2.10959359]
[1748873633822,0.26178519,104090.0,104080.0,2.10959359]
[1748873634257,0.26178519,104090.0,104080.0,2.14269359]
[1748873634481,0.26178519,104090.0,104080.0,2.18743444]
[1748873635220,0.26178519,104090.0,104080.0,2.18712938]
[1748873635433,0.26178519,104090.0,104080.0,2.12382938]
[1748873636631,0.26178519,104090.0,104080.0,2.15452938]
[1748873637338,0.26178519,104090.0,104080.0,2.12382938]
[1748873641100,0.26178519,104090.0,104080.0,2.15572938]
[1748873641581,0.18273038,104090.0,104080.0,7.83928119]
[1748873641798,0.0319,104130.0,104120.0,0.22089784]
[1748873642013,0.53229233,104170.0,104160.0,0.220813]
[1748873642248,1.07388541,104170.0,104160.0,0.22081319]
[1748873642472,0.89158433,104170.0,104160.0,0.23041315]
[1748873642679,1.0931775,104170.0,104160.0,0.2016128]
[1748873642916,0.35920039,104160.0,104150.0,0.32193591]
[1748873643144,0.57242446,104160.0,104150.0,0.32193591]
[1748873643357,0.58202452,104160.0,104150.0,0.32193591]
[1748873643569,0.96606452,104160.0,104150.0,0.32193591]
[1748873643782,0.38404,104160.0,104150.0,0.32193591]
[1748873644001,0.39363978,104160.0,104150.0,0.32193591]
[1748873644426,0.40182706,104160.0,104150.0,0.32193591]
[1748873644637,0.39204,104160.0,104150.0,0.32193591]
[1748873644859,0.40361953,104160.0,104150.0,0.32193591]
[1748873645075,0.46621953,104160.0,104150.0,0.32193591]
[1748873645310,0.45664,104160.0,104150.0,0.41779021]
[1748873645789,0.44864,104160.0,104150.0,0.41779021]
[1748873646264,0.44664,104160.0,104150.0,0.41779021]
[1748873646490,0.45264,104160.0,104150.0,0.41779021]
[1748873646686,1.00586481,104160.0,104150.0,0.41779021]
[1748873646910,0.44264,104160.0,104150.0,0.41779021]
[1748873648013,0.44264,104160.0,104150.0,0.21121647]
[1748873648014,0.6538523,104160.0,104150.0,0.21121647]
[1748873648244,0.99586481,104160.0,104150.0,0.66953834]
[1748873648467,1.00546477,104160.0,104150.0,0.66953834]
[1748873648893,0.44264,104160.0,104150.0,0.66953834]
[1748873649106,0.45223987,104160.0,104150.0,0.66953834]
[1748873649534,0.44264,104160.0,104150.0,0.66953834]
[1748873650163,0.45223987,104160.0,104150.0,0.66953834]
[1748873650377,1.01506455,104160.0,104150.0,0.66953834]
[1748873651055,1.02466479,104160.0,104150.0,0.66953834]
[1748873651268,1.0246647,104160.0,104150.0,0.66953834]
[1748873651422,1.01506455,104160.0,104150.0,0.66953834]
[1748873651637,1.0246647,104160.0,104150.0,0.66953834]
[1748873651807,1.26429763,104160.0,104150.0,0.19201405]
[1748873652021,0.08420168,104150.0,104140.0,0.65022052]
[1748873652225,0.64702756,104150.0,104140.0,0.3312227]
[1748873652438,1.22269953,104150.0,104140.0,0.6598227]
[1748873652641,1.04027034,104150.0,104140.0,0.33122334]
[1748873652838,1.23230171,104150.0,104140.0,0.34082515]
[1748873653043,1.03066946,104150.0,104140.0,0.34082515]
[1748873653252,1.02606811,104150.0,104140.0,0.34082515]
[1748873653450,1.22970018,104150.0,104140.0,0.34082515]
[1748873653663,1.23930171,104150.0,104140.0,0.32162144]
[1748873653874,1.05262602,104150.0,104140.0,0.21122144]
[1748873654108,1.04302467,104150.0,104140.0,0.34082533]
[1748873654309,1.03342342,104150.0,104140.0,0.34082533]
[1748873654533,0.48019824,104150.0,104140.0,0.34082533]
[1748873654736,0.47484266,104150.0,104140.0,0.34082533]
[1748873654949,1.2200992,104150.0,104140.0,0.32162153]
[1748873655135,0.22579427,104140.0,104130.0,0.20167098]
[1748873655393,0.0192038,104140.0,104130.0,0.32167389]
[1748873655600,0.94646861,104140.0,104130.0,0.32167389]
[1748873655803,0.93686662,104140.0,104130.0,0.33127662]
[1748873655933,1.0200707,104140.0,104130.0,0.33127662]
[1748873656140,1.0200707,104140.0,104130.0,0.65979662]
[1748873656349,1.02967297,104140.0,104130.0,0.65979662]
[1748873656549,1.03167297,104140.0,104130.0,0.65979662]
[1748873656744,1.04127533,104140.0,104130.0,0.65979662]
[1748873656950,1.03567297,104140.0,104130.0,0.65979662]
[1748873657149,1.0260707,104140.0,104130.0,0.65979662]
[1748873657566,0.46324371,104140.0,104130.0,0.65979662]
[1748873657768,0.47284579,104140.0,104130.0,0.65979662]
[1748873658238,0.44404,104140.0,104130.0,0.65979662]
[1748873659573,0.38004,104140.0,104130.0,0.75565092]
[1748873661705,0.08430574,104130.0,104120.0,0.71732605]
[1748873661968,0.08430537,104130.0,104120.0,0.74613802]
[1748873662182,0.46794828,104130.0,104120.0,0.75574167]
[1748873662411,0.46794828,104130.0,104120.0,0.74613802]
[1748873662412,1.23244689,104130.0,104120.0,0.74613802]
[1748873662639,1.03077619,104130.0,104120.0,0.75574167]
[1748873662854,1.11568431,104130.0,104120.0,1.08414167]
[1748873663073,1.02326632,104130.0,104120.0,1.08414167]
[1748873663284,0.4624386,104130.0,104120.0,1.08414167]
[1748873663492,0.481015,104130.0,104120.0,1.08414167]
[1748873663706,0.68331577,104130.0,104120.0,0.75574167]
[1748873663916,0.48164489,104130.0,104120.0,1.08414167]
[1748873664128,0.47204161,104130.0,104120.0,1.08414167]
[1748873664338,0.48164471,104130.0,104120.0,1.08414167]
[1748873664595,1.30984616,104130.0,104120.0,1.05529026]
[1748873664812,1.30984616,104130.0,104120.0,1.07449812]
[1748873665039,1.30984616,104130.0,104120.0,0.62613428]
[1748873665254,1.30024315,104130.0,104120.0,1.05529026]
[1748873665466,1.30024315,104130.0,104120.0,1.06489437]
[1748873665685,1.29961465,104130.0,104120.0,1.05529026]
[1748873665910,1.29064005,104130.0,104120.0,1.06489428]
[1748873666139,1.29064005,104130.0,104120.0,1.08410186]
[1748873666140,0.37813323,104130.0,104120.0,1.08410186]
[1748873666377,0.37813323,104130.0,104120.0,1.17995616]
[1748873667302,0.44113323,104130.0,104120.0,1.17991616]
[1748873667529,0.45073578,104130.0,104120.0,1.17991616]
[1748873668041,0.44113323,104130.0,104120.0,1.17991616]
[1748873668466,0.55284982,104130.0,104120.0,1.08406186]
[1748873668917,0.44113323,104130.0,104120.0,1.08406186]
[1748873669136,0.40953323,104130.0,104120.0,1.17991616]
[1748873669361,1.02286614,104130.0,104120.0,0.74119616]
[1748873669614,1.00366068,104130.0,104120.0,1.17987616]
[1748873669797,0.99405804,104130.0,104120.0,1.17987616]
[1748873670050,0.45043587,104130.0,104120.0,0.75574186]
[1748873670268,0.44083323,104130.0,104120.0,1.08402186]
[1748873670754,0.44083323,104130.0,104120.0,0.64534186]
[1748873671006,0.44083323,104130.0,104120.0,1.08402186]
[1748873671215,0.37813323,104130.0,104120.0,1.17987616]
[1748873672355,0.37813323,104130.0,104120.0,0.74119616]
[1748873672557,0.37813323,104130.0,104120.0,1.17983616]
[1748873674526,0.37813323,104130.0,104120.0,1.21003616]
[1748873674740,0.37813323,104130.0,104120.0,1.55003616]
[1748873675372,0.37813323,104130.0,104120.0,2.13516097]
[1748873675796,0.37813323,104130.0,104120.0,1.58193616]
[1748873678482,0.37813323,104130.0,104120.0,1.51927616]
[1748873679138,0.37813323,104130.0,104120.0,1.19119616]
[1748873679377,0.37813323,104130.0,104120.0,1.51927616]
[1748873682046,0.37813323,104130.0,104120.0,1.08119616]
[1748873682246,0.37813323,104130.0,104120.0,1.17919616]
[1748873682795,0.37813323,104130.0,104120.0,1.17915616]
[1748873684039,0.37813323,104130.0,104120.0,0.74119616]
[1748873684220,0.37813323,104130.0,104120.0,1.17911616]
[1748873685060,0.37813323,104130.0,104120.0,0.74119616]
[1748873685264,0.44133323,104130.0,104120.0,1.17911616]
[1748873685684,0.37813323,104130.0,104120.0,1.17911616]
[1748873689824,0.37813323,104130.0,104120.0,1.17899616]
[1748873691701,0.37813323,104130.0,104120.0,0.85119616]
[1748873691944,0.37813323,104130.0,104120.0,0.74119616]
[1748873692171,0.37813323,104130.0,104120.0,1.17895616]
[1748873694060,0.37813323,104130.0,104120.0,1.17891616]
[1748873694287,0.47064445,104130.0,104120.0,1.17891616]
[1748873694502,0.44263323,104130.0,104120.0,1.17891616]
[1748873695179,0.46183878,104130.0,104120.0,0.64534186]
[1748873695380,1.00539444,104130.0,104120.0,1.08302186]
[1748873695609,0.9957918,104130.0,104120.0,1.08302186]
[1748873695818,0.44263323,104130.0,104120.0,1.08302186]
[1748873696291,0.45163523,104130.0,104120.0,1.08302186]
[1748873696501,0.44263323,104130.0,104120.0,0.75534186]
[1748873696709,0.44263323,104130.0,104120.0,1.08302186]
[1748873697354,0.40933323,104130.0,104120.0,1.08302186]
[1748873697717,0.37813323,104130.0,104120.0,1.17887616]
[1748873698311,0.43933323,104130.0,104120.0,1.17887616]
[1748873698579,0.43933323,104130.0,104120.0,0.85119616]
[1748873698891,1.09460575,104130.0,104120.0,1.08294186]
[1748873699047,1.10420866,104130.0,104120.0,1.08294186]
[1748873699245,0.9924918,104130.0,104120.0,1.08294186]
[1748873699470,0.43933323,104130.0,104120.0,1.08294186]
[1748873699998,0.37813323,104130.0,104120.0,1.40435473]
[1748873700199,0.37813323,104130.0,104120.0,1.17879616]
[1748873700385,0.37813323,104130.0,104120.0,1.79455473]
[1748873700604,0.37813323,104130.0,104120.0,1.17879616]
[1748873700819,0.37813323,104130.0,104120.0,0.74119616]
[1748873701029,0.37813323,104130.0,104120.0,1.17879616]
[1748873702006,0.40973323,104130.0,104120.0,1.17879616]
[1748873702195,0.44263323,104130.0,104120.0,1.17879616]
[1748873703631,0.37813323,104130.0,104120.0,1.17879616]
[1748873704223,0.44023323,104130.0,104120.0,1.17879616]
[1748873704428,0.40963323,104130.0,104120.0,1.17879616]
[1748873704641,0.37813323,104130.0,104120.0,2.13620553]
[1748873704860,0.37813323,104130.0,104120.0,5.27693262]
[1748873705074,0.35509375,104130.0,104120.0,3.74643262]
[1748873705293,0.35509375,104130.0,104120.0,2.21708283]
[1748873705507,0.32053578,104130.0,104120.0,2.21708283]
[1748873705719,0.32053578,104130.0,104120.0,2.18314325]
[1748873705923,0.32053578,104130.0,104120.0,1.62993388]
[1748873706142,0.32053578,104130.0,104120.0,2.18314325]
[1748873706376,0.31853578,104130.0,104120.0,2.18314325]
[1748873706792,0.31753578,104130.0,104120.0,2.21701534]
[1748873706997,0.31853578,104130.0,104120.0,2.21701534]
[1748873707206,0.31653578,104130.0,104120.0,2.21701534]
[1748873707654,0.31653578,104130.0,104120.0,2.22301534]
[1748873707855,0.31653578,104130.0,104120.0,1.77099449]
[1748873708061,0.31653578,104130.0,104120.0,2.20795449]
[1748873708706,0.31653578,104130.0,104120.0,1.77099449]
[1748873708927,0.31653578,104130.0,104120.0,2.20795449]
[1748873709141,0.31653578,104130.0,104120.0,2.14156553]
[1748873709142,0.09271082,104130.0,104120.0,2.14156553]
[1748873709341,0.05171082,104130.0,104120.0,2.17038853]
[1748873709747,0.05171082,104130.0,104120.0,1.84302853]
[1748873709953,0.05171082,104130.0,104120.0,2.17034853]
[1748873711864,0.05171082,104130.0,104120.0,1.84302853]
[1748873712071,0.05171082,104130.0,104120.0,1.77882853]
[1748873712234,0.05171082,104130.0,104120.0,1.18407616]
[1748873712650,0.05171082,104130.0,104120.0,1.52407616]
[1748873712849,0.05171082,104130.0,104120.0,1.58607616]
[1748873713023,0.05171082,104130.0,104120.0,2.13928553]
[1748873715627,0.05171082,104130.0,104120.0,2.16810853]
[1748873715848,0.05171082,104130.0,104120.0,2.18264938]
[1748873717153,0.01071082,104130.0,104120.0,2.73585875]
[1748873717368,0.01071082,104130.0,104120.0,1.62944001]
[1748873717578,0.01071082,104130.0,104120.0,2.18264938]
[1748873719350,0.01071082,104130.0,104120.0,2.24900234]
[1748873719569,0.01071082,104130.0,104120.0,1.36951297]
[1748873719803,0.01071082,104130.0,104120.0,2.24980234]
[1748873720227,0.01071082,104130.0,104120.0,2.24979331]
[1748873722443,0.01071082,104130.0,104120.0,2.80300268]
[1748873722657,0.01071082,104130.0,104120.0,2.24979331]
[1748873723342,0.01071082,104130.0,104120.0,2.24941703]
[1748873724433,0.01071082,104130.0,104120.0,1.30316001]
[1748873724657,0.01071082,104130.0,104120.0,1.22807629]
[1748873724876,0.22081319,104160.0,104150.0,0.20163216]
[1748873725097,0.22081319,104160.0,104150.0,0.33039421]
[1748873725098,0.56183233,104160.0,104150.0,0.33039421]
[1748873725316,0.62413351,104160.0,104150.0,0.33039421]
[1748873725542,0.63313343,104160.0,104150.0,0.33039421]
[1748873725758,0.05209984,104160.0,104150.0,0.33039421]
[1748873725977,0.06170008,104160.0,104150.0,0.33039421]
[1748873726205,0.45574017,104160.0,104150.0,0.33039421]
[1748873726419,0.44674008,104160.0,104150.0,0.33039421]
[1748873726601,1.00857326,104160.0,104150.0,0.33039421]
[1748873726874,0.99957317,104160.0,104150.0,0.33039421]
[1748873727093,0.42853987,104160.0,104150.0,0.33039421]
[1748873727977,1.03257316,104160.0,104150.0,0.33039421]
[1748873728226,1.03257316,104160.0,104150.0,0.32079332]
[1748873728227,1.33286833,104160.0,104150.0,0.32079332]
[1748873728441,1.14085587,104160.0,104150.0,0.33999519]
[1748873728650,0.07310107,104150.0,104140.0,0.21123663]
[1748873728876,0.63553541,104150.0,104140.0,0.33039844]
[1748873729096,1.03877765,104150.0,104140.0,0.21123663]
[1748873729325,0.08970616,104140.0,104130.0,0.32080083]
[1748873729548,0.63293689,104140.0,104130.0,0.34000722]
[1748873729764,0.45454181,104140.0,104130.0,0.34000722]
[1748873729980,0.44494,104140.0,104130.0,0.34000722]
[1748873730940,0.44494,104140.0,104130.0,0.43586152]
[1748873731589,0.44494,104140.0,104130.0,0.43686152]
[1748873731773,0.41424,104140.0,104130.0,0.43686152]
[1748873732230,0.44684,104140.0,104130.0,0.43686152]
[1748873732664,0.40584,104140.0,104130.0,0.43586152]
[1748873732882,0.41544172,104140.0,104130.0,0.43586152]
[1748873733106,0.40584,104140.0,104130.0,0.43586152]
[1748873733782,0.40584,104140.0,104130.0,0.34000722]
[1748873733783,0.97787661,104140.0,104130.0,0.34000722]
[1748873733972,0.98747869,104140.0,104130.0,0.34000722]
[1748873734196,1.08959218,104140.0,104130.0,0.34000722]
[1748873734449,0.96827471,104140.0,104130.0,0.34000722]
[1748873734641,1.19973221,104140.0,104130.0,0.10956]
[1748873734858,1.17092688,104140.0,104130.0,0.10956]
[1748873735083,1.6034381,104140.0,104130.0,0.31123088]
[1748873735308,1.30827499,104140.0,104130.0,0.33043698]
[1748873735528,1.33848129,104140.0,104130.0,0.34003971]
[1748873735752,1.35217661,104140.0,104130.0,0.34003971]
[1748873735960,0.8199479,104140.0,104130.0,0.34003971]
[1748873736183,0.82054797,104140.0,104130.0,0.34003971]
[1748873736404,1.37338106,104140.0,104130.0,0.34003971]
[1748873736857,1.46589228,104140.0,104130.0,0.34003971]
[1748873737118,0.99497309,104140.0,104130.0,0.34003971]
[1748873737341,0.37724,104140.0,104130.0,0.66671971]
[1748873737780,0.37724,104140.0,104130.0,0.76257401]
[1748873741118,0.44134,104140.0,104130.0,0.76213401]
[1748873741341,0.49732912,104140.0,104130.0,0.23047971]
[1748873741563,0.49732912,104140.0,104130.0,0.66627971]
[1748873741987,0.50633029,104140.0,104130.0,0.66627971]
[1748873742204,0.66159403,104140.0,104130.0,0.65667698]
[1748873742450,1.55536945,104140.0,104130.0,0.3012276]
[1748873742663,1.56437158,104140.0,104130.0,0.31083079]
[1748873742876,1.55536945,104140.0,104130.0,0.3300369]
[1748873743101,0.45034212,104140.0,104130.0,0.33963963]
[1748873743309,0.41854162,104140.0,104130.0,0.33963963]
[1748873743524,0.41854148,104140.0,104130.0,0.33963963]
[1748873743746,0.44024,104140.0,104130.0,0.33963963]
[1748873743961,0.40954,104140.0,104130.0,0.33963963]
[1748873744166,0.41914172,104140.0,104130.0,0.33963963]
[1748873744377,0.42874362,104140.0,104130.0,0.33963963]
[1748873744583,0.46144312,104140.0,104130.0,0.33963963]
[1748873744803,0.41854135,104140.0,104130.0,0.33963963]
[1748873745057,0.37724,104140.0,104130.0,0.33963963]
[1748873745702,0.43173616,104140.0,104130.0,0.66615963]
[1748873745910,0.45024181,104140.0,104130.0,0.66615963]
[1748873746595,1.03222237,104140.0,104130.0,0.66615963]
[1748873746806,1.03222228,104140.0,104130.0,0.66615963]
[1748873747021,0.46944588,104140.0,104130.0,0.66615963]
[1748873747244,0.47844754,104140.0,104130.0,0.66615963]
[1748873747927,0.79121428,104140.0,104130.0,0.34924254]